Publisher Label,Publisher URI,"Payment Date","Organisational Unit","Beneficiary Name","Purpose","Amount (£)","Irrecoverable VAT Amount (£)","Merchant Category Code"
"Wolverhampton City Council","http://opendatacommunities.org/id/metropolitan-district-council/wolverhampton","03/06/16","Governance","ACAS","Training Expenses","2,505.00","0.00","8999"
"Wolverhampton City Council","http://opendatacommunities.org/id/metropolitan-district-council/wolverhampton","15/06/16","Pension Operations","Barnett Waddingham LLP","Services - Consultants","2,400.00","0.00","6012"
"Wolverhampton City Council","http://opendatacommunities.org/id/metropolitan-district-council/wolverhampton","11/05/16","Pension Operations","Barnett Waddingham LLP","Actuarial Fees","2,602.50","0.00","6012"
"Wolverhampton City Council","http://opendatacommunities.org/id/metropolitan-district-council/wolverhampton","11/05/16","Pension Operations","Barnett Waddingham LLP","Actuarial Fees","3,105.00","0.00","6012"
"Wolverhampton City Council","http://opendatacommunities.org/id/metropolitan-district-council/wolverhampton","05/05/16","Pension Operations","Barnett Waddingham LLP","Actuarial Fees","4,000.00","0.00","6012"
"Wolverhampton City Council","http://opendatacommunities.org/id/metropolitan-district-council/wolverhampton","10/06/16","Pension Operations","Barnett Waddingham LLP","Actuarial Fees","5,130.00","0.00","6012"
"Wolverhampton City Council","http://opendatacommunities.org/id/metropolitan-district-council/wolverhampton","08/06/16","Pension Operations","Barnett Waddingham LLP","Actuarial Fees","5,785.00","0.00","6012"
"Wolverhampton City Council","http://opendatacommunities.org/id/metropolitan-district-council/wolverhampton","11/05/16","Pension Operations","Barnett Waddingham LLP","Actuarial Fees","9,120.00","0.00","6012"
"Wolverhampton City Council","http://opendatacommunities.org/id/metropolitan-district-council/wolverhampton","08/06/16","Pension Operations","Barnett Waddingham LLP","Actuarial Fees","18,700.00","0.00","6012"
"Wolverhampton City Council","http://opendatacommunities.org/id/metropolitan-district-council/wolverhampton","22/06/16","Investments Fund Account","BARRA INTERNATIONAL LIMITED","Computing - Maint Agreements","59,666.19","0.00","5045"
"Wolverhampton City Council","http://opendatacommunities.org/id/metropolitan-district-council/wolverhampton","20/04/16","Pension Operations","BIRMINGHAM CITY COUNCIL","Comms - Postage","2,486.25","0.00","9399"
"Wolverhampton City Council","http://opendatacommunities.org/id/metropolitan-district-council/wolverhampton","20/04/16","Pension Operations","BIRMINGHAM CITY COUNCIL","Comms - Postage","2,554.82","0.00","9399"
"Wolverhampton City Council","http://opendatacommunities.org/id/metropolitan-district-council/wolverhampton","14/04/16","Governance","Britannia Fire Training Ltd","Training Expenses","740.00","0.00","8999"
"Wolverhampton City Council","http://opendatacommunities.org/id/metropolitan-district-council/wolverhampton","23/05/16","Pension Operations","CIVICA UK LIMITED","Computing - Maint Agreements","850.00","0.00","5045"
"Wolverhampton City Council","http://opendatacommunities.org/id/metropolitan-district-council/wolverhampton","17/05/16","Pension Operations","CIVICA UK LIMITED","Computing - Maint Agreements","15,000.00","0.00","5045"
"Wolverhampton City Council","http://opendatacommunities.org/id/metropolitan-district-council/wolverhampton","04/05/16","Governance","DTZ DTL LTD CLIENT AC:COMMONRECEIPTS","Rent","8,800.00","0.00","7523"
"Wolverhampton City Council","http://opendatacommunities.org/id/metropolitan-district-council/wolverhampton","14/06/16","Pension Operations","eFinancial Careers Ltd","Staff Advertising Costs","500.00","0.00","7311"
"Wolverhampton City Council","http://opendatacommunities.org/id/metropolitan-district-council/wolverhampton","01/06/16","Governance","EML, Event Management & Logistics Ltd","Training Expenses","1,600.00","0.00","8999"
"Wolverhampton City Council","http://opendatacommunities.org/id/metropolitan-district-council/wolverhampton","03/05/16","Governance","GLJ Contracts Ltd","R&M - Departmental planned (external)","1,525.50","0.00","1520"
"Wolverhampton City Council","http://opendatacommunities.org/id/metropolitan-district-council/wolverhampton","15/06/16","Investment - Revenue","HSBC BANK PLC/HSBC SECURITY SERVICES","Services - Professional Fees","2,731.00","0.00","6012"
"Wolverhampton City Council","http://opendatacommunities.org/id/metropolitan-district-council/wolverhampton","17/05/16","Investment - Revenue","HSBC BANK PLC/HSBC SECURITY SERVICES","Services - Professional Fees","2,731.00","0.00","6012"
"Wolverhampton City Council","http://opendatacommunities.org/id/metropolitan-district-council/wolverhampton","06/06/16","Investments Fund Account","HSBC BANK PLC/HSBC SECURITY SERVICES","Services - Bank Charges","19,657.53","0.00","6012"
"Wolverhampton City Council","http://opendatacommunities.org/id/metropolitan-district-council/wolverhampton","26/04/16","Pension Operations","HYMANS ROBERTSON LLP","Services - Professional Fees","7,000.00","0.00","6012"
"Wolverhampton City Council","http://opendatacommunities.org/id/metropolitan-district-council/wolverhampton","23/05/16","Financial Services","HYMANS ROBERTSON LLP","Services - Professional Fees","5,833.00","0.00","6012"
"Wolverhampton City Council","http://opendatacommunities.org/id/metropolitan-district-council/wolverhampton","22/06/16","Financial Services","HYMANS ROBERTSON LLP","Services - Professional Fees","8,391.00","0.00","6012"
"Wolverhampton City Council","http://opendatacommunities.org/id/metropolitan-district-council/wolverhampton","17/05/16","Governance","Kaizen Consultants","Stationery","1,060.00","0.00","2741"
"Wolverhampton City Council","http://opendatacommunities.org/id/metropolitan-district-council/wolverhampton","17/05/16","Governance","Kaizen Consultants","Stationery","1,192.50","0.00","2741"
"Wolverhampton City Council","http://opendatacommunities.org/id/metropolitan-district-council/wolverhampton","22/06/16","Governance","KONICA MINOLTA BUS.SOLUTIONS(UK)LTD.","Printing","1,969.02","0.00","2741"
"Wolverhampton City Council","http://opendatacommunities.org/id/metropolitan-district-council/wolverhampton","20/04/16","Governance","KONICA MINOLTA BUS.SOLUTIONS(UK)LTD.","Printing","20,285.94","0.00","2741"
"Wolverhampton City Council","http://opendatacommunities.org/id/metropolitan-district-council/wolverhampton","05/05/16","Investments Fund Account","KONICA MINOLTA BUS.SOLUTIONS(UK)LTD.","Printing","2,505.54","0.00","2741"
"Wolverhampton City Council","http://opendatacommunities.org/id/metropolitan-district-council/wolverhampton","02/06/16","Investment - Revenue","KPMG LLP FEES ACCOUNT","Services - Professional Fees","23,700.00","0.00","8999"
"Wolverhampton City Council","http://opendatacommunities.org/id/metropolitan-district-council/wolverhampton","20/05/16","Governance","KRCS GROUP PLC","Computing - Purchase of Hardware","660.15","0.00","5072"
"Wolverhampton City Council","http://opendatacommunities.org/id/metropolitan-district-council/wolverhampton","14/04/16","Investments Fund Account","LINEDATA LIMITED","Computing - Maint Agreements","43,534.29","0.00","5045"
"Wolverhampton City Council","http://opendatacommunities.org/id/metropolitan-district-council/wolverhampton","20/05/16","Investments Fund Account","LONDON STOCK EXCHANGE PLC","Services - General Licences","574.67","0.00","6012"
"Wolverhampton City Council","http://opendatacommunities.org/id/metropolitan-district-council/wolverhampton","27/06/16","Governance","MIDWEST ELECTRICAL SERVICES LTD","R&M - Departmental planned (external)","3,071.00","0.00","4900"
"Wolverhampton City Council","http://opendatacommunities.org/id/metropolitan-district-council/wolverhampton","23/05/16","Pension Operations","Miles Associates","Agency Staff","5,600.00","0.00","7361"
"Wolverhampton City Council","http://opendatacommunities.org/id/metropolitan-district-council/wolverhampton","11/05/16","Governance","Movecorp Ltd","Services - Professional Fees","549.00","0.00","8999"
"Wolverhampton City Council","http://opendatacommunities.org/id/metropolitan-district-council/wolverhampton","08/06/16","Governance","Movecorp Ltd","Services - Professional Fees","940.50","0.00","8999"
"Wolverhampton City Council","http://opendatacommunities.org/id/metropolitan-district-council/wolverhampton","14/06/16","Investment - Revenue","Pinsent Masons","Services - Professional Fees","10,665.00","0.00","8111"
"Wolverhampton City Council","http://opendatacommunities.org/id/metropolitan-district-council/wolverhampton","26/05/16","Governance","PIRC Ltd","Services - Professional Fees","92,263.00","0.00","8999"
"Wolverhampton City Council","http://opendatacommunities.org/id/metropolitan-district-council/wolverhampton","27/04/16","Investment - Revenue","Portfolio Evalutaion Limited","Services - Professional Fees","5,340.00","0.00","8999"
"Wolverhampton City Council","http://opendatacommunities.org/id/metropolitan-district-council/wolverhampton","22/06/16","Investment - Revenue","Portfolio Evalutaion Limited","Services - Professional Fees","5,812.50","0.00","8999"
"Wolverhampton City Council","http://opendatacommunities.org/id/metropolitan-district-council/wolverhampton","22/06/16","Investment - Revenue","Portfolio Evalutaion Limited","Services - Professional Fees","7,210.00","0.00","8999"
"Wolverhampton City Council","http://opendatacommunities.org/id/metropolitan-district-council/wolverhampton","20/04/16","Investment - Revenue","Portfolio Evalutaion Limited","Services - Professional Fees","8,209.00","0.00","8999"
"Wolverhampton City Council","http://opendatacommunities.org/id/metropolitan-district-council/wolverhampton","05/05/16","Financial Services","PRI ASSOCIAION LTD(GLOBAL COMPACT)","Conference Expenses","7,950.00","0.00","8999"
"Wolverhampton City Council","http://opendatacommunities.org/id/metropolitan-district-council/wolverhampton","24/05/16","Financial Services","PRICE WATERHOUSE COOPERS","Services - Professional Fees","1,250.00","0.00","8931"
"Wolverhampton City Council","http://opendatacommunities.org/id/metropolitan-district-council/wolverhampton","10/06/16","Governance","ROYAL MAIL GROUP PLC","Comms - Postage","610.43","0.00","9402"
"Wolverhampton City Council","http://opendatacommunities.org/id/metropolitan-district-council/wolverhampton","27/05/16","Governance","ROYAL MAIL GROUP PLC","Comms - Postage","777.48","0.00","9402"
"Wolverhampton City Council","http://opendatacommunities.org/id/metropolitan-district-council/wolverhampton","13/05/16","Governance","ROYAL MAIL GROUP PLC","Comms - Postage","812.78","0.00","9402"
"Wolverhampton City Council","http://opendatacommunities.org/id/metropolitan-district-council/wolverhampton","02/06/16","Governance","Severn Valley Windows & Door","R&M - Departmental response (Internal)","1,320.00","0.00","5231"
"Wolverhampton City Council","http://opendatacommunities.org/id/metropolitan-district-council/wolverhampton","04/05/16","Governance","SGS UNITED KINGDOM LTD","Services - Professional Fees","1,149.75","0.00","8999"
"Wolverhampton City Council","http://opendatacommunities.org/id/metropolitan-district-council/wolverhampton","22/06/16","Property and legal fees","SQUIRE,SANDERS & DEMPSEY (UK) LLP","Services - Professional Fees","598.98","0.00","8111"
"Wolverhampton City Council","http://opendatacommunities.org/id/metropolitan-district-council/wolverhampton","05/05/16","Pension Operations","SWIFT BUSINESS SOLUTIONS LTD","Equipment - Purchase","1,355.00","0.00","5021"
"Wolverhampton City Council","http://opendatacommunities.org/id/metropolitan-district-council/wolverhampton","27/04/16","Investment - Revenue","Tedmoor Consultancy Ltd","Investment Management Expenses","3,950.25","0.00","8999"
"Wolverhampton City Council","http://opendatacommunities.org/id/metropolitan-district-council/wolverhampton","04/05/16","Investment - Revenue","Tedmoor Consultancy Ltd","Investment Management Expenses","3,950.25","0.00","8999"
"Wolverhampton City Council","http://opendatacommunities.org/id/metropolitan-district-council/wolverhampton","10/05/16","Investments Fund Account","The Financial Times Limited","Staff Advertising Costs","500.00","0.00","5192"
"Wolverhampton City Council","http://opendatacommunities.org/id/metropolitan-district-council/wolverhampton","13/05/16","Investments Fund Account","The Financial Times Limited","Staff Advertising Costs","500.00","0.00","5192"
"Wolverhampton City Council","http://opendatacommunities.org/id/metropolitan-district-council/wolverhampton","25/05/16","Governance","Trinity Mirror Publishing Limited","Staff Advertising Costs","7,000.00","0.00","5192"
"Wolverhampton City Council","http://opendatacommunities.org/id/metropolitan-district-council/wolverhampton","14/06/16","Pension Operations","UK MAIL LTD/BUSINESSPOST INTERNATNL.","Comms - Postage","971.88","0.00","4215"
"Wolverhampton City Council","http://opendatacommunities.org/id/metropolitan-district-council/wolverhampton","04/05/16","Pension Operations","UK MAIL LTD/BUSINESSPOST INTERNATNL.","Comms - Postage","3,722.50","0.00","4215"
"Wolverhampton City Council","http://opendatacommunities.org/id/metropolitan-district-council/wolverhampton","01/06/16","Pension Operations","UK MAIL LTD/BUSINESSPOST INTERNATNL.","Comms - Postage","19,507.70","0.00","4215"
"Wolverhampton City Council","http://opendatacommunities.org/id/metropolitan-district-council/wolverhampton","10/06/16","Governance","WaterCoolers Direct.com Ltd","Water Charges","1,895.00","0.00","7299"
"Wolverhampton City Council","http://opendatacommunities.org/id/metropolitan-district-council/wolverhampton","26/05/16","Pension Operations","Yoo","Agency Staff","588.69","0.00","7361"
"Wolverhampton City Council","http://opendatacommunities.org/id/metropolitan-district-council/wolverhampton","03/05/16","Pension Operations","Yoo","Agency Staff","3,012.13","0.00","7361"
"Wolverhampton City Council","http://opendatacommunities.org/id/metropolitan-district-council/wolverhampton","03/05/16","Pension Operations","Yoo","Agency Staff","5,707.51","0.00","7361"
